Workbook

Sheet COST SUMMARY
C1: PROJECT: OC BITHLO COMMUNITY PARK FITNESS CENTER EXPANSION | K1: Web: http://sigmaestimations.com Email: info@sigmaestimations.com
C3: ADDRESS: 18501 WASHINGTON AVENUE ORLANDO, FL 32820
D6: BASE BID /ALTERNATES/ALLOWANCES | F6: TOTAL COSTS
D7: BASE BID | F7: ='BASE BID'!M104 -> $159,504
D8: TOTAL BID | F8: =SUM(F7:F7) -> $159,504

Sheet BASE BID
C1: PROJECT: OC BITHLO COMMUNITY PARK FITNESS CENTER EXPANSION | K1: Web: http://sigmaestimations.com Email: info@sigmaestimations.com
C3: ADDRESS: 18501 WASHINGTON AVENUE ORLANDO, FL 32820
A5: ITEM # | B5: DWG # | C5: CSI #/SUB DETAIL | D5: DESCRIPTION | E5: QTY. | F5: WASTE | G5: QTY. W/ WASTE | H5: UNIT | I5: UNIT LABOR | J5: UNIT MATERIAL | K5: TOTAL UNIT COST | L5: TOTAL COST | M5: TRADE COST
C6: 010000 | D6: DIVISION 01 — GENERAL REQUIREMENTS
A7: =IF(H7<>"",1+MAX(A1:A6),"") -> 1 | D7: Submittal Procedures | E7: 1 | F7: 0% | G7: =E7+(E7*F7) -> 1 | H7: LS | I7: 0 | J7: 0 | K7: =IF(H7<>"",I7+J7,"") -> 0 | L7: =G7*K7 -> 0
A8: =IF(H8<>"",1+MAX(A2:A7),"") -> 2 | D8: Temporary Facilities and Controls | E8: 1 | F8: 0% | G8: 1 | H8: LS | I8: 0 | J8: 0 | K8: 0 | L8: =G8*K8 -> 0
A9: 3 | D9: Closeout Procedures | E9: 1 | F9: 0% | G9: 1 | H9: LS | I9: 0 | J9: 0 | K9: =IF(H9<>"",I9+J9,"") -> 0 | L9: =G9*K9 -> 0
A10: 4 | D10: Payment Procedures | E10: 1 | F10: 0% | G10: 1 | H10: LS | I10: 0 | J10: 0 | K10: 0 | L10: =G10*K10 -> 0
A11: 5 | D11: Contract Modification Procedures | E11: 1 | F11: 0% | G11: 1 | H11: LS | I11: 0 | J11: 0 | K11: 0 | L11: 0
A12: =IF(H12<>"",1+MAX(A1:A11),"") -> 6 | D12: Maintenance & Traffic Protection | E12: 1 | F12: 0% | G12: 1 | H12: LS | I12: 0 | J12: 0 | K12: =IF(H12<>"",I12+J12,"") -> 0 | L12: =G12*K12 -> 0
A13: =IF(H13<>"",1+MAX(A2:A12),"") -> 7 | D13: General Allowance | E13: 1 | F13: 0% | G13: =E13+(E13*F13) -> 1 | H13: LS | I13: $15,000.00 | J13: 0 | K13: =IF(H13<>"",I13+J13,"") -> $15,000.00 | L13: =G13*K13 -> $15,000
A14: =IF(H14<>"",1+MAX(A3:A13),"") ->  | D14: SUBTOTAL | I14: =IF(H14<>"",0.4*K14,"") ->  | J14: =IF(H14<>"",K14-I14,"") ->  | M14: =SUM(L7:L13) -> $15,000
C15: 030000 | D15: DIVISION 03 — CONCRETE
D17: Concrete Cont. Footing
A18: 8 | B18: S02.01 | D18: (2'-6" Wide x 1'-0" Deep) Concrete Cont. Footing-WF2.5 (117 LF) | E18: 11 | F18: 5% | G18: =E18+(E18*F18) -> 12 | H18: CY | I18: $105.00 | J18: $245.00 | K18: =IF(H18<>"",I18+J18,"") -> $350.00 | L18: =G18*K18 -> $4,043
A19: 9 | B19: S02.01 | D19: #5 Dowel Bar @ 32" O.C. | E19: =(73.2/2.67)*4.59*1.043 -> 131 | F19: 5% | G19: =E19+(E19*F19) -> 138 | H19: LBS | I19: $0.72 | J19: $1.08 | K19: $1.80 | L19: =G19*K19 -> $248
A20: 10 | B20: S02.01 | D20: (3)#5 Longitudinal Bottom Bar | E20: =116.93*3*1.043 -> 366 | F20: 5% | G20: 384 | H20: LBS | I20: $0.72 | J20: $1.08 | K20: =IF(H20<>"",I20+J20,"") -> $1.80 | L20: =G20*K20 -> $692
A21: 11 | B21: S02.01 | D21: #5 Transverse Bottom Bar @ 12" O.C. | E21: =(116.93/1)*2.5*1.043 -> 305 | F21: 5% | G21: 320 | H21: LBS | I21: $0.72 | J21: $1.08 | K21: $1.80 | L21: $576
D23: Concrete Pad Footing
A24: 12 | B24: S02.01 | D24: (6'-6" x 6'-6" x 1'-4") Concrete Pad Footing - F6.5 (01 EA) | E24: =1*6.5*6.5*1.33/27 -> 2 | F24: 5% | G24: =E24+(E24*F24) -> 2 | H24: CY | I24: $105.00 | J24: $245.00 | K24: =IF(H24<>"",I24+J24,"") -> $350.00 | L24: =G24*K24 -> $765
A25: 13 | B25: S02.01 | D25: (8) #5 Top & Bottom Bar | E25: =2*2*8*6.5*1.043 -> 217 | F25: 5% | G25: =E25+(E25*F25) -> 228 | H25: LBS | I25: $0.72 | J25: $1.08 | K25: =IF(H25<>"",I25+J25,"") -> $1.80 | L25: =G25*K25 -> $410
D27: Precast Concrete Lintel
A28: 14 | B28: S02.01 | D28: (8"x8") Precast Concrete Lintel | E28: 34 | F28: 5% | G28: =E28+(E28*F28) -> 35 | H28: LF | I28: $1.80 | J28: $4.20 | K28: =IF(H28<>"",I28+J28,"") -> $6.00 | L28: =G28*K28 -> $212
A29: 15 | B29: S02.01 | D29: #5 Bottom Bar | E29: =33.64*1.043 -> 35 | F29: 5% | G29: 37 | H29: LBS | I29: $0.72 | J29: $1.08 | K29: $1.80 | L29: $66
A31: 16 | B31: S02.01 | D31: (8"x24") Precast Concrete Lintel | E31: 13 | F31: 5% | G31: 14 | H31: LF | I31: $5.10 | J31: $11.90 | K31: $17.00 | L31: $238
A32: 17 | B32: S02.01 | D32: #5 Bottom Bar | E32: =1.043*13.33 -> 14 | F32: 5% | G32: 15 | H32: LBS | I32: $0.72 | J32: $1.08 | K32: $1.80 | L32: $26
A33: 18 | B33: S02.01 | D33: (2) #5 Top Bar | E33: =2*1.043*13.33 -> 28 | F33: 5% | G33: 29 | H33: LBS | I33: $0.72 | J33: $1.08 | K33: $1.80 | L33: $53
D35: Precast Concrete Sill
A36: 19 | B36: A03.01 - A03.02 | D36: (8"x4") Precast Concrete Sill | E36: 95 | F36: 5% | G36: =E36+(E36*F36) -> 100 | H36: LF | I36: $1.53 | J36: $3.80 | K36: =IF(H36<>"",I36+J36,"") -> $5.33 | L36: =G36*K36 -> $534
D38: Concrete Slab
A39: 20 | B39: S02.01 | D39: (4" Thk) Concrete Slab (3,000 Psi) (1499 SF) | E39: =0.33*1498.79/27 -> 18 | F39: 5% | G39: =E39+(E39*F39) -> 19 | H39: CY | I39: $105.00 | J39: $245.00 | K39: =IF(H39<>"",I39+J39,"") -> $350.00 | L39: =G39*K39 -> $6,732
A40: 21 | B40: S02.01 | D40: WWR 6x6-W2.9xW2.9 | E40: 1499 | F40: 5% | G40: 1574 | H40: SF | I40: $0.48 | J40: $0.72 | K40: $1.20 | L40: $1,888
A41: 22 | B41: S02.01 | D41: (2)-#4x4'-0" Long Additional Slab Reinforcement | E41: =1*2*4*0.668 -> 5 | F41: 5% | G41: 6 | H41: LBS | I41: $0.72 | J41: $1.08 | K41: $1.80 | L41: $10
A42: 23 | B42: S02.01 | D42: (4"Thk) Compacted Subgrade | E42: =0.33*1498.79/27 -> 18 | F42: 5% | G42: =E42+(E42*F42) -> 19 | H42: CY | I42: $12.00 | J42: $18.00 | K42: =IF(H42<>"",I42+J42,"") -> $30.00 | L42: =G42*K42 -> $577
A44: 24 | B44: S02.01 | D44: (12" Thk) Slab Turndown | E44: =44.31*1.34/27 -> 2 | F44: 5% | G44: 2 | H44: CY | I44: $105.00 | J44: $245.00 | K44: $350.00 | L44: $808
A45: 25 | B45: S02.01 | D45: #4 Cont. Bar | E45: =44.31*0.668 -> 30 | F45: 5% | G45: 31 | H45: LBS | I45: $0.72 | J45: $1.08 | K45: $1.80 | L45: $56
A46: 26 | B46: S02.01 | D46: #4 @ 12" O.C. | E46: =44.31*3.11*0.668 -> 92 | F46: 5% | G46: 97 | H46: LBS | I46: $0.72 | J46: $1.08 | K46: $1.80 | L46: $174
A47: 27 | B47: S02.01 | D47: (2) #5 Cont. Bar | E47: =2*44.31*1.043 -> 92 | F47: 5% | G47: 97 | H47: LBS | I47: $0.72 | J47: $1.08 | K47: $1.80 | L47: $175
A49: 28 | B49: S02.01 | D49: (12" Thk) Slab Turndown | E49: =117.95*0.67/27 -> 3 | F49: 5% | G49: =E49+(E49*F49) -> 3 | H49: CY | I49: $105.00 | J49: $245.00 | K49: =IF(H49<>"",I49+J49,"") -> $350.00 | L49: =G49*K49 -> $1,076
A50: 29 | B50: S02.01 | D50: (3) #5 Cont. Bar | E50: =3*117.95*1.043 -> 369 | F50: 5% | G50: 388 | H50: LBS | I50: $0.40 | J50: $0.60 | K50: $1.00 | L50: $388
D52: Concrete Compaction
A53: 30 | B53: S02.01 | D53: Slab | E53: 1499 | F53: 5% | G53: =E53+(E53*F53) -> 1574 | H53: SF | I53: $1.20 | J53: 0 | K53: =IF(H53<>"",I53+J53,"") -> $1.20 | L53: =G53*K53 -> $1,889
A54: 31 | B54: S02.01 | D54: Footings | E54: =2.5*117 -> 293 | F54: 5% | G54: =E54+(E54*F54) -> 307 | H54: SF | I54: $1.20 | J54: 0 | K54: =IF(H54<>"",I54+J54,"") -> $1.20 | L54: =G54*K54 -> $369
D56: Misc. Items
A57: 32 | B57: S02.01 | D57: Joint Filler (Construction Joint) | E57: 161 | F57: 5% | G57: =E57+(E57*F57) -> 169 | H57: LF | I57: $1.40 | J57: $2.10 | K57: =IF(H57<>"",I57+J57,"") -> $3.50 | L57: =G57*K57 -> $592
A58: 33 | B58: S02.01 | D58: Isolation Joint | E58: 118 | F58: 5% | G58: =E58+(E58*F58) -> 124 | H58: LF | I58: $1.00 | J58: $1.50 | K58: =IF(H58<>"",I58+J58,"") -> $2.50 | L58: =G58*K58 -> $310
D60: Moisture Barrier:
A61: 34 | B61: S02.01 | D61: 10Mil Vapor Barrier For Concrete Slab Note: Thickness Assumed. | E61: 1499 | F61: 5% | G61: =E61+(E61*F61) -> 1574 | H61: SF | I61: $0.80 | J61: $1.20 | K61: =IF(H61<>"",I61+J61,"") -> $2.00 | L61: =G61*K61 -> $3,147
D63: Formwork
A64: 35 | D64: Formwork For Pad Footing | E64: =6.5*4*1 -> 26 | F64: 5% | G64: =E64+(E64*F64) -> 27 | H64: SF | I64: $2.00 | J64: $3.00 | K64: =IF(H64<>"",I64+J64,"") -> $5.00 | L64: =G64*K64 -> $137
A65: 36 | D65: Formwork For Cont. Footing | E65: =6.17*117 -> 722 | F65: 5% | G65: 758 | H65: SF | I65: $2.00 | J65: $3.00 | K65: $5.00 | L65: $3,790
A66: 37 | D66: Formwork For Concrete Slab | E66: =(44+117)*0.5 -> 81 | F66: 5% | G66: 85 | H66: SF | I66: $2.00 | J66: $3.00 | K66: $5.00 | L66: $423
A68: 38 | D68: Mobilization For Steel/ Reinforcement | E68: =(E19+E20+E21+E25+E29+E32+E33+E41+E45+E46+E47+E50)/2000 -> 1 | F68: 5% | G68: =E68+(E68*F68) -> 1 | H68: TONS | I68: $750.00 | J68: 0 | K68: =IF(H68<>"",I68+J68,"") -> $750.00 | L68: =G68*K68 -> $663
D70: SUBTOTAL | M70: =SUM(L16:L68) -> $31,064
C71: 040000 | D71: DIVISION 04 — MASONRY
D73: CMU
A74: 39 | B74: S02.01 | D74: 8" CMU Wall (13'-4"H) | E74: =73.2*13.33 -> 976 | F74: 5% | G74: =E74+(E74*F74) -> 1025 | H74: SF | I74: $10.80 | J74: $25.20 | K74: =IF(H74<>"",I74+J74,"") -> $36.00 | L74: =G74*K74 -> $36,884
A75: 40 | B75: S02.01 | D75: #5 Vertical Bars @ 32" O.C. | E75: =(73.2/2.67)*13.33*1.043 -> 381 | F75: 5% | G75: 400 | H75: LBS | I75: $0.72 | J75: $1.08 | K75: $1.80 | L75: $720
A77: 41 | B77: S02.01 | D77: 8" CMU Wall (11'-4"H) | E77: =11.33*44.31 -> 502 | F77: 5% | G77: 527 | H77: SF | I77: $10.80 | J77: $25.20 | K77: $36.00 | L77: $18,977
A78: =IF(H78<>"",1+MAX(A67:A77),"") -> 42 | B78: S02.01 | D78: #5 @ 32" O.C. | E78: =(44.31/2.67)*11.33*1.043 -> 196 | F78: 5% | G78: 206 | H78: LBS | I78: $0.72 | J78: $1.08 | K78: $1.80 | L78: $371
A80: 43 | B80: A03.01 - A03.02 | D80: 4" Split Faced CMU Wall (5'-4"H) | E80: =5.33*96.3 -> 513 | F80: 5% | G80: =E80+(E80*F80) -> 539 | H80: SF | I80: $9.80 | J80: $22.20 | K80: =IF(H80<>"",I80+J80,"") -> $32.00 | L80: =G80*K80 -> $17,246
A82: 44 | B82: S02.01 | D82: 8" CMU Foundation Wall (1'-0"H) | E82: 44 | F82: 5% | G82: =E82+(E82*F82) -> 47 | H82: SF | I82: $10.80 | J82: $25.20 | K82: =IF(H82<>"",I82+J82,"") -> $36.00 | L82: =G82*K82 -> $1,675
D84: Misc. Items
A85: 45 | B85: S02.01 | D85: Grout | E85: =5.78+0.68+17.8 -> 24 | F85: 5% | G85: =E85+(E85*F85) -> 25 | H85: CY | I85: $60.00 | J85: $90.00 | K85: =IF(H85<>"",I85+J85,"") -> $150.00 | L85: =G85*K85 -> $3,821
A87: 46 | D87: Mobilization For Steel/ Reinforcement | E87: =(E75+E78)/2000 -> 0 | F87: 5% | G87: =E87+(E87*F87) -> 0 | H87: TONS | I87: $750.00 | J87: 0 | K87: =IF(H87<>"",I87+J87,"") -> $750.00 | L87: =G87*K87 -> $227
D89: SUBTOTAL | M89: =SUM(L72:L88) -> $79,921
C90: 310000 | D90: DIVISION 31 — EARTHWORK
D92: EARTHWORK FOR CONCRETE FOOTINGS
A93: 47 | B93: S02.01 | D93: Excavation For Concrete Footings | E93: =116.93*3*2.5/27 -> 32 | F93: 5% | G93: =E93+(E93*F93) -> 34 | H93: CY | I93: $35.00 | J93: 0 | K93: =IF(H93<>"",I93+J93,"") -> $35.00 | L93: =G93*K93 -> $1,194
A94: 48 | B94: S02.01 | D94: Backfill For Concrete Footings | E94: =E93-116.93*2.5*1/27-116.93*0.33*1/27 -> 20 | F94: 5% | G94: 21 | H94: CY | I94: $20.00 | J94: 0 | K94: $20.00 | L94: =G96*K94 -> $425
A96: 49 | D96: Soil Export (Fluff Factor Applied) | E96: =(E93-E94)*1.33 -> 16 | F96: 5% | G96: =E94+(E94*F94) -> 21 | H96: CY | I96: $10.00 | J96: 0 | K96: $10.00 | L96: =G98*K96 -> 0
A97: =IF(H97<>"",1+MAX(A86:A96),"") -> 
A98: =IF(H98<>"",1+MAX(A97:A97),"") ->  | D98: SUBTOTAL | M98: =SUM(L91:L97) -> $1,618
A99: SUB TOTAL | L99: =SUM(L6:L97) -> $127,604 | M99: =SUM(M6:M98) -> $127,604
A100: TAX | K100: 8.5% | M100: =M99*K100 -> $10,846
A101: BID BOND | K101: 1.5% | M101: =M99*K101 -> $1,914
A102: PROFIT | K102: 10% | M102: =M99*K102 -> $12,760
A103: CONTIGENCIES | K103: 5% | M103: =M99*K103 -> $6,380
A104: TOTAL BASEBID | M104: =SUM(M99:M103) -> $159,504
A105: General Exclusions: Any kind of controlled inspection, contaminated material, architect and engineering fees, security, building charges, signage, sign off, protection of adjoining building (if any), any work not mentioned above.
A106: General Notes: The prices used are taken from RS Means online i.e. the standard pricing, the company is not responsible for any kind of variations in the prices. So it is preferred to review the prices.

Sheet UJ (hidden)
C2: PROJECT: | D2: 625 PARK AVE PHASE 1B
C3: ADDRESS: | D3: 625 PARK AVENUE,
D4: NEW YORK, NY-10065.
H6: DATE | I6: =TODAY() -> 2026-07-28
A7: ITEM # | B7: CSI SEC. | C7: DESCRIPTION | D7: QTY. | E7: WASTE | F7: QTY. W/ WASTE | G7: UNIT | H7: UNIT COST | I7: TRADE COST | L7: Single side areas
C8: SCOPE OF WORK | L8: Dry | M8: Wet
A9: 1 | B9: 09 29 | C9: 2 layered 5/8" thick USG fiberock brand panels for walls and ceilings. | D9: 11,635 | E9: 10% | F9: =D9*(1+E9) -> 12,799 | G9: sf | H9: $4.0 | I9: =H9*F9 -> $51,194 | J9: Type 1+Type 4+Type 6+ceiling | K9: Type 1 | L9: =2520-80 -> 2440 | M9: 280 | N9: =(2440*2+290*2+2345+3830) -> 11635
A10: 2 | B10: 09 29 | C10: 2 layerd 5/8" thick USG fiberock aqua tough brand panels for wall and ceilings in wet areas. | D10: 1,185 | E10: 10% | F10: =D10*(1+E10) -> 1,304 | G10: sf | H10: $4.5 | I10: =H10*F10 -> $5,866 | J10: Type 1+Type 4+Type 6+wet ceiling | K10: Type 2 | L10: =210-80 -> 130 | M10: 80 | N10: =(280*2+325+300) -> 1185
A11: 3 | B11: 09 29 | C11: 2 layered 2 HR rated 5/8" thick USG fiberock brand panels for walls. | D11: 260 | E11: 10% | F11: =D11*(1+E11) -> 286 | G11: sf | H11: $4.5 | I11: =H11*F11 -> $1,287 | J11: Type 2 | K11: Type 3 | N11: =130*2 -> 260
A12: 4 | B12: 09 29 | C12: 2 layered 2 HR rated 5/8" thick USG fiberock aqua tough brand panels for walls in wet areas. | D12: 160 | E12: 10% | F12: 176 | G12: sf | H12: $5.0 | I12: =H12*F12 -> $880 | J12: Type 2 | K12: Type 4 | L12: 290 | N12: =80*2 -> 160
A13: 5 | B13: 09 29 | C13: 3 layered 3 HR rated 5/8" thick USG fiberock brand panels for walls. | D13: 300 | E13: 10% | F13: 330 | G13: sf | H13: $4.0 | I13: =H13*F13 -> $1,320 | J13: Type 7 | K13: Type 5 | L13: 1200 | N13: =150*2 -> 300
A14: 6 | B14: 09 26 | C14: 3/32" thick gypsum veneer plaster skim coat. | D14: 14,740 | E14: 10% | F14: 16,214 | G14: sf | H14: $4.0 | I14: =H14*F14 -> $64,856 | J14: Type 1+Type 2+ Type 4+Type 5+Type 6 +Type 7 | K14: Type 6 | L14: =2670-325 -> 2345 | M14: 325 | N14: =SUM(N9:N13)+L13 -> 14740 | O14: =SUM(L9:M10)*2+L13+SUM(L14:M14)+L15*2+SUM(L17:M17)+L12*2 -> 14740 | P14: =N14-O14 -> 0
A15: 7 | B15: 09 22 16 | C15: 3-5/8" steel studs 20 GA @ 16" O.C. | D15: 5,750 | E15: 10% | F15: 6,325 | G15: sf | H15: $2.5 | I15: =H15*F15 -> $15,813 | J15: Type 1+Type 2+Type 6+Type 7 | K15: Type 7 | L15: 150 | N15: =SUM(L9:M10)+SUM(L14:M15) -> 5750
A16: 8 | B16: 10 22 16 | C16: 1-5/8" steel studs 20 GA @ 12" O.C. | D16: 290 | E16: 10% | F16: 319 | G16: sf | H16: $2.0 | I16: $638 | J16: Type 4 | K16: Type 8 | L16: 20
A17: 8 | B17: 09 22 26 | C17: Ceiling suspension system. | D17: 4,130 | E17: 10% | F17: 4,543 | G17: sf | H17: $3.0 | I17: =H17*F17 -> $13,629 | K17: Ceiling | L17: 3830 | M17: 300 | N17: =SUM(L17:M17) -> 4130
A18: 9 | B18: 07 21 16 | C18: Batt Insulation. | D18: 5,600 | E18: 5% | F18: 5,880 | G18: sf | H18: $2.0 | I18: =H18*F18 -> $11,760 | J18: Type 1+Type 2+ Type 6 | N18: =SUM(L9:M10)+SUM(L14:M14) -> 5600
A19: 10 | B19: 07 21 16 | C19: Batt Insulation type SAFB. | D19: 150 | E19: 10% | F19: 165 | G19: sf | H19: $2.2 | I19: =H19*F19 -> $363 | J19: Type 7 | N19: 150
A21: SUB TOTAL | I21: =SUM(I9:I19) -> $167,605
A22: INSURANCE (3%) | I22: =(3/100)*I21 -> $5,028
A23: TOTAL BASE BID | I23: =SUM(I21:I22) -> $172,633
C25: Exclusions
B26: 1 | C26: Mouldings
B27: 2 | C27: Patch work
B28: 3 | C28: Fixtures
B29: 4 | C29: Electrical work
B30: 5 | C30: Stone and/or tile work
B31: 6 | C31: Wall type 8 [no details on provided on the drawing]

Sheet DETAIL (2) (hidden)
B2: PROJECT: | C2: 625 PARK AVE PHASE 1B
B3: ADDRESS: | C3: 625 PARK AVENUE
C4: NEW YORK, NY 10065
E6: DATE | F6: =TODAY() -> 2026-07-28
A7: ITEM # | B7: DESCRIPTION | C7: UNIT COST | D7: QTY. | E7: UNIT | F7: TRADE COST
B8: SCOPE OF WORK
A9: 1 | B9: 5/8" 2 layered USG fiberock brand panels. | D9: =((2358+277+2077)-644)+3830 -> 7,898 | E9: sf | F9: =C9*D9 -> 0 | G9: Type 1+Type 4+Type 6+ceiling
A10: 2 | B10: 5/8" 2 layered USG fiberock aqua tough brand panels. (Wet area). | D10: =644+292 -> 936 | E10: sf | F10: =C10*D10 -> 0 | G10: Type 1+Type 4+Type 6+wet ceiling | I10: Height 9'6"
A11: 3 | B11: 2 HR rated 5/8" 2 layered USG fiberock brand panels. | D11: =206-78 -> 128 | E11: sf | F11: 0 | G11: Type 2 | I11: For Doors & Cabinets 1'3"
A12: 4 | B12: 2 HR rated 5/8" 2 layered USG fiberock aqua tough brand panels. (Wet area). | D12: 78 | E12: sf | F12: 0 | G12: Type 2
A13: 5 | B13: 3 HR rated 5/8" 3 layered USG fiberock brand panels. | D13: 148 | E13: sf | F13: 0 | G13: Type 7
A14: 6 | B14: 3/32" thick gypsum veneer plaster skim coat. | D14: =2538+206+277+1343+2077+148 -> 6,589 | E14: sf | F14: 0 | G14: Type 1+Type 2+ Type 4+Type 5+Type 6 +Type 7
A15: 7 | B15: 3 5/8" steel studs 20 GA @ 16" O.C. | D15: 4,968 | E15: sf | F15: 0 | G15: Type 1+Type 2+Type 6+Type 7
A16: 8 | B16: 1 5/8" steel studs 20 GA @ 12" O.C. | D16: 277 | E16: sf | F16: 0 | G16: Type 4
A17: 9 | B17: Batt sound Insulation. | D17: =2538+206+2077 -> 4,821 | E17: sf | F17: 0 | G17: Type 1+Type 2+ Type 6
A18: 10 | B18: Batt sound Insulation type SAFB. | D18: 148 | E18: sf | F18: 0 | G18: Type 7 | H18: QTY Details
H19: Type 1 | I19: 2538 | J19: 2520
A20: TOTAL | F20: =SUM(F9:F18) -> 0 | H20: Type 2 | I20: 205 | J20: 206
B21: Exclusions | H21: Type 3 | I21: N/A
A22: 1 | B22: Mouldings | H22: Type 4 | I22: 277 | J22: 290
A23: 2 | B23: Patch work | H23: Type 5 | I23: 1342 | J23: 1200
A24: 3 | B24: Fixtures | H24: Type 6 | I24: 2077 | J24: 2670
A25: 4 | B25: Electrical work | H25: Type 7 | I25: 148 | J25: 150
A26: 5 | B26: Stone and/or tile work | H26: Type 8 | I26: 22 | J26: 20 | K26: No details given
A27: 6 | H27: Ceiling | I27: 3830
H28: Wet Ceiling | I28: 292
B31: DETAILS
B32: Type 1- Interior Partition | G32: Type 2- 2HR rated Interior Partition | H32: Type
B33: 2 layers 5/8' USG fiberock brand panels (Fiberock aqua tough brand at all wet areas) Glue second layer, finished with 3-32" thick gypsum veneer plaster skim coat. 3 5/8" Stl studs 20 GA @16" O.C with Batt insulation. 2 layers 5/8" USG fiberock brand panels(Fiberock aqua tough brand at all wet areas finished 3-32" thick gypsum veneer plaster skim coat | G33: 2 layers 5/8' USG fiberock brand panels (Fiberock aqua tough brand at all wet areas) Glue second layer, finished with 3-32" thick gypsum veneer plaster skim coat. 3 5/8" Stl studs 20 GA @16" O.C with Batt insulation. 2 layers 5/8" USG fiberock brand panels(Fiberock aqua tough brand at all wet areas finished 3-32" thick gypsum veneer plaster skim coat
B35: TYPE 3 Interior partition at chase | G35: TYPE 4 Pocket door partition
B36: 2 layer 5/8" USG fiberock brand panels ( Fiberock aqua tough brand at all wet areas ) Glue second layer fill batt insulation, finished with 3/32" thick gypsum veneer plaster skim coat. 20 Ga 2-1/2" mtl studs @ 16 O.C. with batt insulation. Pipe chase space. 2 layers 5/8" USG fiberock brand panels (Fiberock aqua tough brand at all wet areas finished with 3/32" thick gypsum veneer plaster skim coat. | G36: 2 Layers 5/8" USG fiberock brand panels (Fiberock Aqua tough brand at all wet areas) Glue second layer, Finished with 3/32" thick gypsum veneer plaster skim coat. 1 5/8" 20 Ga stl studs @12 O.C. 2 layer 5/8" USG fiberock brand panels (fiberock aqua tough brand at wet areas) finished with 3/32" thick gypsum veneer plaster skim coat.
B38: TYPE 5 Existing wall skim coat | G38: TYPE 6 EXISTING WALL- Furring
B39: Apply 3/32" Thick gypsum veneer skim coat. Fill and smooth all imperfections | G39: 3 5/8" 20 Ga stl studs @ 16 O.C. 2 layers 5/8" USG fiberock brand panels dimensions from exterior wall to be varified with architect. Fill with Batt insulation, Finished with 3/32" Thick Gypsum veneer plaster skim coat
B40: TYPE 7 Interior Partition- 3 Hr rated
B41: 3 layer 5/8" USG fiberock brand panels, glue third layer finished with 3/32" thick gypsum veneer plaster skim coat. 3 5/8" stl studs 20 GA @16"O.C. Batt insulation Type SAFB. 3 layer 5/8" USG fiberock brand panels, glue third layer finished with 3-32" thick gypsum veneer plaster skim coat
